[Event "POL-chT 1 Liga 2019"]
[Site "Dzwirzyno"]
[Date "2019.09.12"]
[Round "6.15"]
[White "Rawicz, Karol"]
[Black "Szmacinski, Slawomir"]
[Result "1-0"]
[ECO "B20"]
[WhiteElo "2200"]
[BlackElo "1848"]
[Annotator "NA"]
[PlyCount "53"]
[EventDate "2019.09.07"]
[EventType "team-tourn"]
[EventCountry "POL"]
[SourceTitle "playchess.com"]
[Source "ChessBase"]
[SourceQuality "1"]
[TimeControl "40/5400+30:1800+30"]

1. e4 {[%emt 0:00:00]} c5 {[%emt 0:00:00]} 2. Ne2 {[%emt 0:00:00]} d6 {[%emt 0:01:43]} 3. c4 {[%emt 0:00:24]} Nf6 {[%emt 0:02:08]} 4. Nbc3 {[%emt 0:00:10]} Nc6 {[%emt 0:01:13]} 5. d4 {[%emt 0:00:54]} cxd4 {[%emt 0:02:26]} 6. Nxd4 {[%emt 0:00:05]} e5 {[%emt 0:04:32]} 7. Nc2 {[%emt 0:02:01]} Be6 {[%emt 0:01:19]} 8. Be2 {[%emt 0:00:49]} Be7 {[%emt 0:00:32]} 9. O-O {[%emt 0:01:28]} O-O {[%emt 0:00:07]} 10. Be3 {[%emt 0:05:56]} Rc8 {[%emt 0:06:00]} 11. f3 {[%emt 0:04:25]} b6 {[%emt 0:04:17]} 12. Qd2 {[%emt 0:03:57]} h6 {[%emt 0:06:53]} 13. Rfd1 {[%emt 0:27:28]} Ne8 {[%emt 0:15:10]} 14. b3 {[%emt 0:15:32]} Qc7 {[%emt 0:16:54]} 15. Rac1 {[%emt 0:02:14]} Qb8 {[%emt 0:01:04]} 16. Nd5 {[%emt 0:00:59]} Bd8 {[%emt 0:05:44]} 17. Kh1 {[%emt 0:09:32]} Ne7 {[%emt 0:05:52]} 18. Ncb4 {[%emt 0:01:31]} a5 {[%emt 0:08:01]} 19. Nxe7+ {[%emt 0:04:34]} Bxe7 {[%emt 0:00:11]} 20. Nd5 {[%emt 0:00:10]} Bd8 {[%emt 0:06:52]} 21. a3 {[%emt 0:00:41]} Qb7 {[%emt 0:01:39]} 22. b4 {[%emt 0:00:48]} Bxd5 {[%emt 0:01:43]} 23. cxd5 {[%emt 0:01:19]} Nf6 {[%emt 0:01:03]} 24. Bb5 {[%emt 0:05:11]} Bc7 {[%emt 0:04:27]} 25. Rc6 {[%emt 0:02:24]} Bd8 {[%emt 0:01:35]} 26. bxa5 {[%emt 0:05:11]} bxa5 {[%emt 0:00:17]} 27. Ba6 {[%emt 0:00:51]} 1-0

[Event "POL-chT 1 Liga 2019"]
[Site "Dzwirzyno"]
[Date "2019.09.12"]
[Round "6.16"]
[White "Redlich, Bogdan"]
[Black "Jaroch, Karol"]
[Result "0-1"]
[ECO "E16"]
[WhiteElo "1600"]
[BlackElo "2236"]
[Annotator "NA"]
[PlyCount "60"]
[EventDate "2019.09.07"]
[EventType "team-tourn"]
[EventCountry "POL"]
[SourceTitle "playchess.com"]
[Source "ChessBase"]
[SourceQuality "1"]
[TimeControl "40/5400+30:1800+30"]

1. d4 {[%emt 0:00:00]} e6 {[%emt 0:00:00]} 2. Nf3 {[%emt 0:00:07]} Nf6 {[%emt 0:00:00]} 3. c4 {[%emt 0:02:37]} b6 {[%emt 0:00:00]} 4. g3 {[%emt 0:00:29]} Bb7 {[%emt 0:00:00]} 5. Bg2 {[%emt 0:00:11]} Bb4+ {[%emt 0:08:33]} 6. Bd2 {[%emt 0:01:57]} a5 {[%emt 0:15:28]} 7. O-O {[%emt 0:06:32]} O-O {[%emt 0:00:28]} 8. Nc3 {[%emt 0:01:49]} d6 {[%emt 0:06:37]} 9. Rc1 {[%emt 0:05:21]} Nbd7 {[%emt 0:00:12]} 10. a3 {[%emt 0:03:53]} Bxc3 {[%emt 0:00:08]} 11. Bxc3 {[%emt 0:00:08]} Ne4 {[%emt 0:00:14]} 12. Nd2 {[%emt 0:02:29]} Nxd2 {[%emt 0:06:48]} 13. Qxd2 {[%emt 0:05:45]} Bxg2 {[%emt 0:00:13]} 14. Kxg2 {[%emt 0:00:11]} f5 {[%emt 0:00:06]} 15. b4 {[%emt 0:08:39]} axb4 {[%emt 0:04:59]} 16. axb4 {[%emt 0:00:16]} Nf6 {[%emt 0:00:59]} 17. d5 {[%emt 0:06:40]} e5 {[%emt 0:02:27]} 18. f3 {[%emt 0:01:49]} Qd7 {[%emt 0:01:51]} 19. Ra1 {[%emt 0:01:57]} Ra4 {[%emt 0:02:28]} 20. Qc2 {[%emt 0:02:46]} Rfa8 {[%emt 0:00:42]} 21. Rxa4 {[%emt 0:00:28]} Rxa4 {[%emt 0:00:02]} 22. Ra1 {[%emt 0:00:16]} Rxa1 {[%emt 0:00:06]} 23. Bxa1 {[%emt 0:00:10]} b5 {[%emt 0:00:44]} 24. h3 {[%emt 0:07:03]} h5 {[%emt 0:01:03]} 25. f4 {[%emt 0:01:38]} bxc4 {[%emt 0:02:01]} 26. fxe5 {[%emt 0:03:18]} dxe5 {[%emt 0:01:20]} 27. Qxc4 {[%emt 0:00:32]} Qd6 {[%emt 0:00:08]} 28. Bxe5 {[%emt 0:06:07]} Qxe5 {[%emt 0:00:53]} 29. d6+ {[%emt 0:00:14]} Kh7 {[%emt 0:00:04]} 30. dxc7 {[%emt 0:00:42]} Ne4 {[%emt 0:00:06]} 0-1

[Event "POL-chT 1 Liga 2019"]
[Site "Dzwirzyno"]
[Date "2019.09.12"]
[Round "6.17"]
[White "Samborski, Henryk"]
[Black "Kelm, Robert"]
[Result "1-0"]
[ECO "A37"]
[WhiteElo "2098"]
[BlackElo "1585"]
[Annotator "NA"]
[PlyCount "71"]
[EventDate "2019.09.07"]
[EventType "team-tourn"]
[EventCountry "POL"]
[SourceTitle "playchess.com"]
[Source "ChessBase"]
[SourceQuality "1"]
[TimeControl "40/5400+30:1800+30"]

1. c4 {[%emt 0:00:00]} c5 {[%emt 0:00:45]} 2. Nc3 {[%emt 0:00:00]} Nc6 {[%emt 0:00:15]} 3. g3 {[%emt 0:01:15]} g6 {[%emt 0:00:19]} 4. Bg2 {[%emt 0:00:03]} Bg7 {[%emt 0:00:08]} 5. Nf3 {[%emt 0:03:21]} e6 {[%emt 0:03:18]} 6. O-O {[%emt 0:06:40]} Nge7 {[%emt 0:00:24]} 7. d3 {[%emt 0:00:59]} d5 {[%emt 0:05:42]} 8. cxd5 {[%emt 0:09:35]} Nxd5 {[%emt 0:00:10]} 9. Bd2 {[%emt 0:01:16]} O-O {[%emt 0:00:48]} 10. Qc1 {[%emt 0:15:45]} Re8 {[%emt 0:12:27]} 11. Re1 {[%emt 0:08:43]} b6 {[%emt 0:05:32]} 12. Bg5 {[%emt 0:03:48]} f6 {[%emt 0:05:14]} 13. Bh6 {[%emt 0:01:13]} Bb7 {[%emt 0:00:20]} 14. h4 {[%emt 0:01:52]} Bh8 {[%emt 0:04:23]} 15. Qd2 {[%emt 0:07:23]} Nde7 {[%emt 0:07:20]} 16. Qd1 {[%emt 0:09:15]} Nf5 {[%emt 0:03:00]} 17. Bd2 {[%emt 0:00:41]} Qd7 {[%emt 0:01:03]} 18. Ne4 {[%emt 0:01:03]} Nfd4 {[%emt 0:11:42]} 19. Bc3 {[%emt 0:00:31]} f5 {[%emt 0:00:34]} 20. Ned2 {[%emt 0:02:45]} Rad8 {[%emt 0:05:15]} 21. Rc1 {[%emt 0:04:45]} a5 {[%emt 0:08:23]} 22. a4 {[%emt 0:01:03]} Nxf3+ {[%emt 0:02:51]} 23. Bxf3 {[%emt 0:01:10]} Ne5 {[%emt 0:00:35]} 24. Bxe5 {[%emt 0:01:52]} Bxe5 {[%emt 0:00:32]} 25. Nc4 {[%emt 0:00:07]} Bd4 {[%emt 0:01:40]} 26. e3 {[%emt 0:06:03]} Bxf3 {[%emt 0:00:36]} 27. Qxf3 {[%emt 0:00:03]} Bf6 {[%emt 0:00:44]} 28. Nxb6 {[%emt 0:00:38]} Qxd3 {[%emt 0:02:56]} 29. Red1 {[%emt 0:03:57]} Qb3 {[%emt 0:00:16]} 30. Rxd8 {[%emt 0:00:23]} Rxd8 {[%emt 0:01:35]} 31. Qc6 {[%emt 0:00:35]} Rb8 {[%emt 0:04:31]} 32. Nd7 {[%emt 0:00:48]} Bxb2 {[%emt 0:00:06]} 33. Nxb8 {[%emt 0:01:50]} Bxc1 {[%emt 0:00:43]} 34. Qe8+ {[%emt 0:00:04]} Kg7 {[%emt 0:00:13]} 35. Nd7 {[%emt 0:01:45]} e5 {[%emt 0:02:44]} 36. Qf8# {[%emt 0:00:10]} 1-0

[Event "POL-chT 1 Liga 2019"]
[Site "Dzwirzyno"]
[Date "2019.09.12"]
[Round "6.18"]
[White "Miturova, Magdalena"]
[Black "Worek, Joanna"]
[Result "0-1"]
[ECO "A06"]
[WhiteElo "2219"]
[BlackElo "2308"]
[Annotator "NA"]
[PlyCount "52"]
[EventDate "2019.09.07"]
[EventType "team-tourn"]
[EventCountry "POL"]
[SourceTitle "playchess.com"]
[Source "ChessBase"]
[SourceQuality "1"]
[TimeControl "40/5400+30:1800+30"]

1. Nf3 {[%emt 0:00:00]} d5 {[%emt 0:00:00]} 2. g3 {[%emt 0:00:00]} Nf6 {[%emt 0:00:29]} 3. Bg2 {[%emt 0:00:00]} Bg4 {[%emt 0:00:11]} 4. c4 {[%emt 0:00:20]} c6 {[%emt 0:02:52]} 5. O-O {[%emt 0:00:13]} e6 {[%emt 0:00:58]} 6. d3 {[%emt 0:01:09]} Be7 {[%emt 0:02:13]} 7. cxd5 {[%emt 0:10:54]} exd5 {[%emt 0:01:09]} 8. Qb3 {[%emt 0:01:28]} Qb6 {[%emt 0:06:50]} 9. Qc2 {[%emt 0:00:43]} O-O {[%emt 0:03:23]} 10. Be3 {[%emt 0:02:12]} Qd8 {[%emt 0:06:21]} 11. Qb3 {[%emt 0:00:32]} Bxf3 {[%emt 0:01:30]} 12. Bxf3 {[%emt 0:00:10]} Qd7 {[%emt 0:00:03]} 13. Nd2 {[%emt 0:12:41]} Na6 {[%emt 0:03:22]} 14. Rac1 {[%emt 0:00:36]} h6 {[%emt 0:00:57]} 15. Bd4 {[%emt 0:06:47]} Rfe8 {[%emt 0:00:48]} 16. Rfd1 {[%emt 0:10:21]} Nh7 {[%emt 0:05:57]} 17. Bg2 {[%emt 0:09:16]} Bf8 {[%emt 0:08:06]} 18. Nf3 {[%emt 0:08:45]} Ng5 {[%emt 0:09:59]} 19. Nxg5 {[%emt 0:01:04]} hxg5 {[%emt 0:00:06]} 20. e4 {[%emt 0:00:36]} Red8 {[%emt 0:16:38]} 21. exd5 {[%emt 0:02:21]} cxd5 {[%emt 0:00:04]} 22. Re1 {[%emt 0:06:31]} Qg4 {[%emt 0:05:08]} 23. Be3 {[%emt 0:02:37]} d4 {[%emt 0:01:09]} 24. h3 {[%emt 0:05:30]} Qf5 {[%emt 0:00:29]} 25. Bd2 {[%emt 0:08:10]} Nc5 {[%emt 0:00:41]} 26. Qc4 {[%emt 0:02:17]} Nxd3 {[%emt 0:00:56]} 0-1

[Event "POL-chT 1 Liga 2019"]
[Site "Dzwirzyno"]
[Date "2019.09.12"]
[Round "6.19"]
[White "Antoniewski, Rafal"]
[Black "Chylewski, Patryk"]
[Result "1/2-1/2"]
[ECO "B10"]
[WhiteElo "2497"]
[BlackElo "2342"]
[Annotator "ChessBase"]
[PlyCount "51"]
[EventDate "2019.09.07"]
[EventType "team-tourn"]
[EventCountry "POL"]
[SourceTitle "playchess.com"]
[Source "ChessBase"]
[SourceQuality "1"]
[TimeControl "40/5400+30:1800+30"]

1. e4 {[%emt 0:00:00]} c6 {[%emt 0:00:00]} 2. Nf3 {[%emt 0:00:46]} d5 {[%emt 0:00:00]} 3. Nc3 {[%emt 0:00:04]} Nf6 {[%emt 0:05:18]} 4. e5 {[%emt 0:01:35]} Ne4 {[%emt 0:00:06]} 5. Ne2 {[%emt 0:02:14]} Qb6 {[%emt 0:00:05]} 6. d4 {[%emt 0:00:10]} e6 {[%emt 0:00:09]} 7. Ng3 {[%emt 0:09:12]} Nxg3 {[%emt 0:06:47]} 8. hxg3 {[%emt 0:00:08]} c5 {[%emt 0:00:17]} 9. dxc5 {[%emt 0:10:23]} Bxc5 {[%emt 0:01:02]} 10. Qd2 {[%emt 0:00:05]} Nc6 {[%emt 0:04:34]} 11. Bd3 {[%emt 0:01:43]} Bd7 {[%emt 0:02:56]} 12. a3 {[%emt 0:02:17]} a5 {[%emt 0:05:59]} 13. O-O {[%emt 0:06:00]} h6 {[%emt 0:07:45]} 14. c4 {[%emt 0:10:49]} dxc4 {[%emt 0:03:13]} 15. Bxc4 {[%emt 0:00:05]} Rd8 {[%emt 0:02:55]} 16. Qe2 {[%emt 0:04:36]} Nd4 {[%emt 0:01:32]} 17. Nxd4 {[%emt 0:00:25]} Bxd4 {[%emt 0:00:05]} 18. Rb1 {[%emt 0:07:57]} Qc5 {[%emt 0:08:39]} 19. b4 {[%emt 0:01:40]} axb4 {[%emt 0:07:38]} 20. Rxb4 {[%emt 0:00:12]} Bc6 {[%emt 0:00:49]} 21. Bb2 {[%emt 0:03:41]} O-O {[%emt 0:01:36]} 22. Rc1 {[%emt 0:01:23]} Bxb2 {[%emt 0:02:46]} 23. Qxb2 {[%emt 0:00:06]} Qd4 {[%emt 0:04:23]} 24. Be2 {[%emt 0:09:32]} Qxb2 {[%emt 0:01:37]} 25. Rxb2 {[%emt 0:00:10]} Ra8 {[%emt 0:00:31]} 26. Rc3 {[%emt 0:00:20]} 1/2-1/2

[Event "POL-chT 1 Liga 2019"]
[Site "Dzwirzyno"]
[Date "2019.09.12"]
[Round "6.20"]
[White "Kowalski, Igor"]
[Black "Cyborowski, Lukasz"]
[Result "1/2-1/2"]
[ECO "D45"]
[WhiteElo "2364"]
[BlackElo "2509"]
[Annotator "ChessBase"]
[PlyCount "21"]
[EventDate "2019.09.07"]
[EventType "team-tourn"]
[EventCountry "POL"]
[SourceTitle "playchess.com"]
[Source "ChessBase"]
[SourceQuality "1"]
[TimeControl "40/5400+30:1800+30"]

1. d4 {[%emt 0:00:00]} Nf6 {[%emt 0:00:00]} 2. c4 {[%emt 0:00:00]} e6 {[%emt 0:00:03]} 3. Nf3 {[%emt 0:00:00]} d5 {[%emt 0:01:08]} 4. Nc3 {[%emt 0:00:00]} c6 {[%emt 0:01:03]} 5. e3 {[%emt 0:00:00]} Nbd7 {[%emt 0:00:08]} 6. Qc2 {[%emt 0:00:00]} Bd6 {[%emt 0:01:06]} 7. b3 {[%emt 0:00:05]} O-O {[%emt 0:00:41]} 8. Bb2 {[%emt 0:00:06]} b6 {[%emt 0:03:05]} 9. Rd1 {[%emt 0:04:07]} Bb7 {[%emt 0:02:45]} 10. Be2 {[%emt 0:01:28]} Qe7 {[%emt 0:01:59]} 11. O-O {[%emt 0:03:14]} 1/2-1/2

[Event "POL-chT 1 Liga 2019"]
[Site "Dzwirzyno"]
[Date "2019.09.12"]
[Round "6.21"]
[White "Nurkiewicz, Maciej"]
[Black "Nowak, Lukasz"]
[Result "1-0"]
[ECO "E97"]
[WhiteElo "2334"]
[BlackElo "2270"]
[Annotator "NA"]
[PlyCount "51"]
[EventDate "2019.09.07"]
[EventType "team-tourn"]
[EventCountry "POL"]
[SourceTitle "playchess.com"]
[Source "ChessBase"]
[SourceQuality "1"]
[TimeControl "40/5400+30:1800+30"]

1. d4 {[%emt 0:00:00]} Nf6 {[%emt 0:00:00]} 2. c4 {[%emt 0:00:00]} g6 {[%emt 0:00:00]} 3. Nc3 {[%emt 0:00:08]} Bg7 {[%emt 0:00:00]} 4. e4 {[%emt 0:00:43]} d6 {[%emt 0:00:04]} 5. Nf3 {[%emt 0:00:08]} O-O {[%emt 0:00:09]} 6. Be2 {[%emt 0:00:05]} e5 {[%emt 0:00:12]} 7. O-O {[%emt 0:00:05]} Nc6 {[%emt 0:00:09]} 8. d5 {[%emt 0:00:15]} Ne7 {[%emt 0:00:16]} 9. b4 {[%emt 0:00:10]} a5 {[%emt 0:00:09]} 10. Ba3 {[%emt 0:00:24]} axb4 {[%emt 0:00:12]} 11. Bxb4 {[%emt 0:00:04]} Re8 {[%emt 0:00:13]} 12. a4 {[%emt 0:10:56]} Bf8 {[%emt 0:00:17]} 13. Qd3 {[%emt 0:08:55]} c5 {[%emt 0:09:56]} 14. dxc6 {[%emt 0:03:28]} Nxc6 {[%emt 0:00:27]} 15. Ba3 {[%emt 0:00:57]} Bg4 {[%emt 0:05:48]} 16. Rfd1 {[%emt 0:04:03]} Bxf3 {[%emt 0:03:15]} 17. Bxf3 {[%emt 0:01:00]} Nd4 {[%emt 0:00:15]} 18. Nb5 {[%emt 0:01:01]} Rxa4 {[%emt 0:14:39]} 19. Nxd4 {[%emt 0:07:54]} exd4 {[%emt 0:00:22]} 20. Qxd4 {[%emt 0:00:15]} Bg7 {[%emt 0:10:21]} 21. e5 {[%emt 0:02:42]} Nd7 {[%emt 0:03:20]} 22. Bxd6 {[%emt 0:00:24]} Ra8 {[%emt 0:30:20]} 23. Bxb7 {[%emt 0:05:39]} Rxa1 {[%emt 0:03:04]} 24. Qxa1 {[%emt 0:00:17]} Qb6 {[%emt 0:10:20]} 25. Rb1 {[%emt 0:00:41]} Qd8 {[%emt 0:00:32]} 26. f4 {[%emt 0:05:38]} 1-0

[Event "POL-chT 1 Liga 2019"]
[Site "Dzwirzyno"]
[Date "2019.09.12"]
[Round "6.22"]
[White "Moscicka, Pola"]
[Black "Bartel, Michal"]
[Result "1/2-1/2"]
[ECO "A62"]
[WhiteElo "1994"]
[BlackElo "2291"]
[Annotator "NA"]
[PlyCount "86"]
[EventDate "2019.09.07"]
[EventType "team-tourn"]
[EventCountry "POL"]
[SourceTitle "playchess.com"]
[Source "ChessBase"]
[SourceQuality "1"]
[TimeControl "40/5400+30:1800+30"]

1. d4 {[%emt 0:00:00]} Nf6 {[%emt 0:00:00]} 2. c4 {[%emt 0:00:00]} c5 {[%emt 0:00:00]} 3. d5 {[%emt 0:00:00]} e6 {[%emt 0:00:00]} 4. Nc3 {[%emt 0:00:00]} exd5 {[%emt 0:00:00]} 5. cxd5 {[%emt 0:00:00]} d6 {[%emt 0:00:07]} 6. g3 {[%emt 0:00:12]} g6 {[%emt 0:00:06]} 7. Bg2 {[%emt 0:00:08]} Bg7 {[%emt 0:00:08]} 8. Nf3 {[%emt 0:00:10]} O-O {[%emt 0:00:09]} 9. O-O {[%emt 0:00:18]} Re8 {[%emt 0:00:05]} 10. Re1 {[%emt 0:00:34]} a6 {[%emt 0:03:19]} 11. a4 {[%emt 0:00:12]} Nbd7 {[%emt 0:00:04]} 12. Bf4 {[%emt 0:02:35]} Qc7 {[%emt 0:05:28]} 13. e4 {[%emt 0:03:29]} Ng4 {[%emt 0:01:49]} 14. h3 {[%emt 0:11:26]} Nge5 {[%emt 0:00:07]} 15. Qc2 {[%emt 0:02:47]} c4 {[%emt 0:02:55]} 16. Nxe5 {[%emt 0:02:36]} Nxe5 {[%emt 0:00:33]} 17. Bxe5 {[%emt 0:01:44]} Bxe5 {[%emt 0:00:04]} 18. f4 {[%emt 0:01:50]} Bg7 {[%emt 0:00:02]} 19. Kh2 {[%emt 0:02:46]} Bd7 {[%emt 0:00:22]} 20. a5 {[%emt 0:04:46]} Rac8 {[%emt 0:00:12]} 21. Qf2 {[%emt 0:06:27]} Qc5 {[%emt 0:09:34]} 22. Re2 {[%emt 0:07:41]} Qb4 {[%emt 0:04:18]} 23. Qe1 {[%emt 0:04:49]} f6 {[%emt 0:08:48]} 24. Na4 {[%emt 0:16:35]} Qxe1 {[%emt 0:03:00]} 25. Rexe1 {[%emt 0:02:21]} Bxa4 {[%emt 0:02:19]} 26. Rxa4 {[%emt 0:00:08]} f5 {[%emt 0:00:02]} 27. e5 {[%emt 0:03:38]} dxe5 {[%emt 0:00:04]} 28. d6 {[%emt 0:00:05]} Rcd8 {[%emt 0:03:55]} 29. Rd1 {[%emt 0:05:23]} e4 {[%emt 0:12:03]} 30. Rxc4 {[%emt 0:03:08]} Bxb2 {[%emt 0:01:36]} 31. d7 {[%emt 0:02:38]} Re6 {[%emt 0:03:33]} 32. Rc7 {[%emt 0:03:13]} Kf8 {[%emt 0:00:58]} 33. Bf1 {[%emt 0:03:14]} e3 {[%emt 0:02:52]} 34. Be2 {[%emt 0:00:16]} b5 {[%emt 0:01:08]} 35. axb6 {[%emt 0:01:42]} Rxb6 {[%emt 0:00:06]} 36. Rd3 {[%emt 0:00:14]} Re6 {[%emt 0:00:24]} 37. Rb3 {[%emt 0:00:27]} Bd4 {[%emt 0:02:07]} 38. Kg2 {[%emt 0:05:22]} Ke7 {[%emt 0:06:22]} 39. Ra3 {[%emt 0:00:54]} a5 {[%emt 0:00:34]} 40. Rb7 {[%emt 0:00:00]} Bb6 {[%emt 0:00:00]} 41. Rb3 {[%emt 0:04:14]} Bc5 {[%emt 0:07:31]} 42. R3b5 {[%emt 0:00:25]} Bb4 {[%emt 0:03:37]} 43. Rd5 {[%emt 0:00:26]} Rd6 {[%emt 0:05:17]} 1/2-1/2

[Event "POL-chT 1 Liga 2019"]
[Site "Dzwirzyno"]
[Date "2019.09.12"]
[Round "6.23"]
[White "Sliwerski, Radoslaw"]
[Black "Kokoszczynski, Jan"]
[Result "1/2-1/2"]
[ECO "E20"]
[WhiteElo "2078"]
[BlackElo "2289"]
[Annotator "NA"]
[PlyCount "122"]
[EventDate "2019.09.07"]
[EventType "team-tourn"]
[EventCountry "POL"]
[SourceTitle "playchess.com"]
[Source "ChessBase"]
[SourceQuality "1"]
[TimeControl "40/5400+30:1800+30"]

1. d4 {[%emt 0:00:00]} Nf6 {[%emt 0:00:00]} 2. c4 {[%emt 0:00:00]} e6 {[%emt 0:00:00]} 3. Nc3 {[%emt 0:00:02]} Bb4 {[%emt 0:00:00]} 4. g3 {[%emt 0:00:05]} O-O {[%emt 0:00:00]} 5. Bg2 {[%emt 0:00:08]} d5 {[%emt 0:00:00]} 6. Nf3 {[%emt 0:00:07]} dxc4 {[%emt 0:00:12]} 7. a3 {[%emt 0:00:08]} Be7 {[%emt 0:11:56]} 8. Qa4 {[%emt 0:00:16]} a6 {[%emt 0:02:32]} 9. Qxc4 {[%emt 0:05:18]} b5 {[%emt 0:00:11]} 10. Qd3 {[%emt 0:01:54]} c5 {[%emt 0:09:46]} 11. Ne5 {[%emt 0:18:53]} c4 {[%emt 0:05:36]} 12. Qd1 {[%emt 0:01:22]} Ra7 {[%emt 0:03:46]} 13. d5 {[%emt 0:09:48]} Bc5 {[%emt 0:07:21]} 14. O-O {[%emt 0:05:34]} exd5 {[%emt 0:05:35]} 15. Nxd5 {[%emt 0:01:03]} Nxd5 {[%emt 0:09:05]} 16. Bxd5 {[%emt 0:05:17]} Bh3 {[%emt 0:01:46]} 17. Bg2 {[%emt 0:02:45]} Bxg2 {[%emt 0:01:54]} 18. Kxg2 {[%emt 0:00:28]} Re7 {[%emt 0:01:56]} 19. Qxd8 {[%emt 0:07:34]} Rxd8 {[%emt 0:00:07]} 20. Bf4 {[%emt 0:05:29]} f6 {[%emt 0:02:11]} 21. Ng4 {[%emt 0:05:23]} Rxe2 {[%emt 0:01:55]} 22. Rfd1 {[%emt 0:03:32]} Nc6 {[%emt 0:06:39]} 23. Rxd8+ {[%emt 0:08:51]} Nxd8 {[%emt 0:00:10]} 24. Rd1 {[%emt 0:00:03]} Ne6 {[%emt 0:01:17]} 25. Bc1 {[%emt 0:01:15]} h5 {[%emt 0:12:48]} 26. Kf1 {[%emt 0:05:58]} Rc2 {[%emt 0:01:18]} 27. Ne3 {[%emt 0:01:32]} Bxe3 {[%emt 0:00:25]} 28. Bxe3 {[%emt 0:00:11]} Kf7 {[%emt 0:10:26]} 29. Rd7+ {[%emt 0:03:29]} Kg6 {[%emt 0:00:08]} 30. Rd6 {[%emt 0:00:03]} Kf5 {[%emt 0:01:56]} 31. Rxa6 {[%emt 0:00:17]} Rxb2 {[%emt 0:00:07]} 32. Rc6 {[%emt 0:00:28]} Ke5 {[%emt 0:02:12]} 33. a4 {[%emt 0:00:40]} bxa4 {[%emt 0:00:55]} 34. Rxc4 {[%emt 0:00:10]} a3 {[%emt 0:00:21]} 35. Ra4 {[%emt 0:01:21]} a2 {[%emt 0:00:09]} 36. Kg2 {[%emt 0:00:01]} g5 {[%emt 0:01:17]} 37. h3 {[%emt 0:03:03]} f5 {[%emt 0:00:38]} 38. g4 {[%emt 0:04:18]} f4 {[%emt 0:01:32]} 39. Ba7 {[%emt 0:00:02]} h4 {[%emt 0:00:43]} 40. Kf3 {[%emt 0:00:00]} Rb3+ {[%emt 0:00:00]} 41. Ke2 {[%emt 0:02:59]} Rb2+ {[%emt 0:14:41]} 42. Kd3 {[%emt 0:00:11]} Rb3+ {[%emt 0:00:10]} 43. Ke2 {[%emt 0:00:10]} Rxh3 {[%emt 0:03:35]} 44. Rxa2 {[%emt 0:00:12]} Rb3 {[%emt 0:00:30]} 45. Ra5+ {[%emt 0:08:25]} Kd6 {[%emt 0:02:01]} 46. Kf1 {[%emt 0:01:02]} f3 {[%emt 0:02:37]} 47. Kg1 {[%emt 0:00:09]} Rb4 {[%emt 0:00:08]} 48. Kh2 {[%emt 0:02:32]} Rxg4 {[%emt 0:00:41]} 49. Be3 {[%emt 0:01:35]} Rg2+ {[%emt 0:07:12]} 50. Kh3 {[%emt 0:03:47]} Rg1 {[%emt 0:02:29]} 51. Kh2 {[%emt 0:02:43]} Rg2+ {[%emt 0:00:04]} 52. Kh3 {[%emt 0:00:04]} Rg1 {[%emt 0:00:02]} 53. Kh2 {[%emt 0:00:06]} Rf1 {[%emt 0:02:21]} 54. Kh3 {[%emt 0:01:39]} Rh1+ {[%emt 0:00:55]} 55. Kg4 {[%emt 0:00:02]} h3 {[%emt 0:00:41]} 56. Kg3 {[%emt 0:12:45]} h2 {[%emt 0:00:26]} 57. Rf5 {[%emt 0:01:18]} g4 {[%emt 0:00:28]} 58. Rh5 {[%emt 0:00:10]} Rg1+ {[%emt 0:00:17]} 59. Kxh2 {[%emt 0:00:11]} Rg2+ {[%emt 0:00:02]} 60. Kh1 {[%emt 0:00:16]} Ke7 {[%emt 0:00:55]} 61. Bg5+ {[%emt 0:01:21]} Nxg5 {[%emt 0:00:53]} 1/2-1/2

[Event "POL-chT 1 Liga 2019"]
[Site "Dzwirzyno"]
[Date "2019.09.12"]
[Round "6.25"]
[White "Szwed, Jacek"]
[Black "Cukrowski, Filip"]
[Result "1/2-1/2"]
[ECO "C47"]
[WhiteElo "2370"]
[BlackElo "2410"]
[Annotator "NA"]
[PlyCount "84"]
[EventDate "2019.09.07"]
[EventType "team-tourn"]
[EventCountry "POL"]
[SourceTitle "playchess.com"]
[Source "ChessBase"]
[SourceQuality "1"]
[TimeControl "40/5400+30:1800+30"]

1. e4 {[%emt 0:00:00]} e5 {[%emt 0:03:01]} 2. Nf3 {[%emt 0:00:00]} Nc6 {[%emt 0:00:05]} 3. Nc3 {[%emt 0:00:01]} Nf6 {[%emt 0:07:49]} 4. d4 {[%emt 0:00:10]} exd4 {[%emt 0:03:09]} 5. Nxd4 {[%emt 0:00:37]} d6 {[%emt 0:01:49]} 6. Bb5 {[%emt 0:04:25]} Bd7 {[%emt 0:00:53]} 7. Bxc6 {[%emt 0:00:56]} bxc6 {[%emt 0:00:36]} 8. O-O {[%emt 0:00:50]} Be7 {[%emt 0:01:08]} 9. Qf3 {[%emt 0:00:38]} O-O {[%emt 0:11:45]} 10. h3 {[%emt 0:08:22]} Re8 {[%emt 0:03:44]} 11. e5 {[%emt 0:09:24]} dxe5 {[%emt 0:15:43]} 12. Nxc6 {[%emt 0:00:05]} Bxc6 {[%emt 0:00:07]} 13. Qxc6 {[%emt 0:00:06]} Qd6 {[%emt 0:00:04]} 14. Qc4 {[%emt 0:07:12]} Qc5 {[%emt 0:00:36]} 15. Qa4 {[%emt 0:20:44]} Qb4 {[%emt 0:05:32]} 16. a3 {[%emt 0:10:35]} Qxa4 {[%emt 0:04:23]} 17. Nxa4 {[%emt 0:00:01]} Nd5 {[%emt 0:00:19]} 18. Re1 {[%emt 0:01:33]} f6 {[%emt 0:05:48]} 19. b3 {[%emt 0:00:46]} Rad8 {[%emt 0:01:39]} 20. Kf1 {[%emt 0:09:15]} Kf7 {[%emt 0:03:47]} 21. Bb2 {[%emt 0:05:35]} Rd7 {[%emt 0:01:02]} 22. g3 {[%emt 0:06:51]} Red8 {[%emt 0:00:16]} 23. Nc3 {[%emt 0:02:00]} Nxc3 {[%emt 0:02:27]} 24. Bxc3 {[%emt 0:00:01]} Bc5 {[%emt 0:00:13]} 25. Ke2 {[%emt 0:03:29]} Ke6 {[%emt 0:00:09]} 26. a4 {[%emt 0:04:07]} a6 {[%emt 0:00:22]} 27. Rab1 {[%emt 0:01:23]} Rd6 {[%emt 0:01:07]} 28. Ba5 {[%emt 0:00:54]} Bb6 {[%emt 0:00:43]} 29. Bb4 {[%emt 0:02:09]} Rd5 {[%emt 0:00:15]} 30. Rec1 {[%emt 0:02:02]} c6 {[%emt 0:02:39]} 31. Be1 {[%emt 0:00:11]} e4 {[%emt 0:01:03]} 32. b4 {[%emt 0:01:02]} Rh5 {[%emt 0:05:27]} 33. h4 {[%emt 0:00:25]} g5 {[%emt 0:04:43]} 34. hxg5 {[%emt 0:00:06]} e3 {[%emt 0:00:53]} 35. c4 {[%emt 0:00:58]} exf2 {[%emt 0:04:04]} 36. Bxf2 {[%emt 0:00:01]} Bxf2 {[%emt 0:04:01]} 37. Kxf2 {[%emt 0:00:01]} Rxg5 {[%emt 0:00:29]} 38. Re1+ {[%emt 0:01:07]} Kf7 {[%emt 0:00:05]} 39. Red1 {[%emt 0:00:55]} Rxd1 {[%emt 0:00:33]} 40. Rxd1 {[%emt 0:00:00]} Rg4 {[%emt 0:00:00]} 41. Rc1 {[%emt 0:05:29]} Ke6 {[%emt 0:01:33]} 42. b5 {[%emt 0:06:08]} Ke5 1/2-1/2